fUSD/lending_fUSD_20241122
["ID","MTS","AMOUNT","RATE_DAILY","PERIOD"]
[342978520,1732242658841,-500.0,0.00059898,120]
[342978521,1732242658850,-500.0,0.00059898,120]
[342978522,1732242658860,-500.0,0.00059898,120]
[342978523,1732242658870,-500.0,0.00059898,120]
[342978524,1732242658879,-500.0,0.00059898,120]
[342978525,1732242658888,-500.0,0.00059898,120]
[342978526,1732242658898,-500.0,0.00059898,120]
[342978527,1732242658907,-500.0,0.00059898,120]
[342978528,1732242658916,-500.0,0.00059898,120]
[342978529,1732242658925,-500.0,0.00059898,120]
[342978530,1732242658934,-500.0,0.00059898,120]
[342978531,1732242658943,-151.0,0.00059898,120]
[342978532,1732242658953,-500.0,0.00059898,120]
[342978533,1732242658963,-500.0,0.00059898,120]
[342978534,1732242658972,-500.0,0.00059898,120]
[342978535,1732242658981,-500.0,0.00059898,120]
[342978536,1732242658990,-500.0,0.00059898,120]
[342978537,1732242658999,-500.0,0.00059898,120]
[342978538,1732242659008,-168.0,0.00059898,120]
[342978539,1732242659018,-168.0,0.00059898,120]
[342978540,1732242659028,-500.0,0.00059898,120]
[342978541,1732242659039,-500.0,0.00059898,120]
[342978542,1732242659048,-500.0,0.00059898,120]
[342978543,1732242659059,-411.01237321,0.00059898,120]
[342978544,1732242659068,-500.0,0.00059898,120]
[342978545,1732242659077,-500.0,0.00059898,120]
[342978546,1732242659087,-500.0,0.00059898,120]
[342978547,1732242659096,-500.0,0.00059898,120]
[342978548,1732242659106,-500.0,0.00059898,120]
[342978549,1732242659116,-500.0,0.00059898,120]
[342978550,1732242659125,-500.0,0.00059898,120]
[342978551,1732242659134,-324.33951796,0.00059898,120]
[342978552,1732242659144,-500.0,0.00059898,120]
[342978553,1732242659154,-500.0,0.00059898,120]
[342978554,1732242659164,-500.0,0.00059898,120]
[342978555,1732242659174,-500.0,0.00059898,120]
[342978556,1732242659184,-341.19088038,0.00059898,120]
[342978557,1732242659194,-500.0,0.00059898,120]
[342978558,1732242659204,-521.49,0.00059898,120]
[342978559,1732242659216,-500.0,0.00059898,120]
[342978560,1732242659225,-500.0,0.00059898,120]
[342978561,1732242659236,-500.0,0.00059898,120]
[342978562,1732242659247,-500.0,0.00059898,120]
[342978563,1732242659256,-500.0,0.00059898,120]
[342978564,1732242659266,-384.33028134,0.00059898,120]
[342978565,1732242659276,-500.0,0.00059898,20]
[342978566,1732242659287,-500.0,0.00059898,120]
[342978567,1732242659297,-500.0,0.00059898,120]
[342978568,1732242659307,-363.93576127,0.00059898,120]
[342978569,1732242659317,-426.44260204,0.00059898,120]
[342978570,1732242659328,-500.0,0.00059898,120]
[342978571,1732242659337,-521.40218277,0.00059898,120]
[342978572,1732242659346,-500.0,0.00059898,120]
[342978573,1732242659356,-500.0,0.00059898,120]
[342978574,1732242659365,-500.0,0.00059898,120]
[342978575,1732242659379,-500.0,0.00059898,120]
[342978576,1732242659389,-500.0,0.00059898,120]
[342978577,1732242659398,-500.0,0.00059898,120]
[342978578,1732242659408,-151.0,0.00059898,120]
[342978579,1732242659418,-259.42651256,0.00059898,120]
[342978580,1732242659427,-320.36169524,0.00059898,120]
[342978581,1732242659436,-151.0,0.00059898,120]
[342978582,1732242659446,-1052.03,0.00059898,120]
[342978583,1732242659455,-500.0,0.00059898,120]
[342978584,1732242659464,-184.02679264,0.00059898,120]
[342978585,1732242659476,-157.493363,0.00059898,120]
[342978586,1732242659486,-627.01079992,0.00059898,120]
[342978587,1732242659496,-164.697854,0.00059898,120]
[342978588,1732242659505,-500.0,0.00059898,120]
[342978589,1732242659515,-557.79,0.00059898,120]
[342978590,1732242659524,-557.79,0.00059898,120]
[342978591,1732242659534,-151.0,0.00059898,120]
[342978592,1732242659546,-500.0,0.00059898,120]
[342978593,1732242659555,-500.0,0.00059898,120]
[342978594,1732242659565,-211.95236131,0.00059898,120]
[342978595,1732242659575,-500.0,0.00059898,120]
[342978596,1732242659583,-155.030121,0.00059898,120]
[342978597,1732242659593,-500.0,0.00059898,120]
[342978598,1732242659602,-500.0,0.00059898,120]
[342978599,1732242659611,-500.0,0.00059898,120]
[342978600,1732242659620,-214.961266,0.00059898,120]
[342978601,1732242659630,-151.0,0.00059898,120]
[342978602,1732242659639,-500.0,0.00059898,7]
[342978603,1732242659650,-500.0,0.00059898,7]
[342978604,1732242659660,-214.961266,0.00059898,120]
[342978605,1732242659669,-500.0,0.00059898,120]
[342978606,1732242659679,-411.5,0.00059898,120]
[342978607,1732242659688,-598.94973738,0.00059898,120]
[342978608,1732242659697,-500.0,0.00059898,120]
[342978609,1732242659707,-500.0,0.00059898,120]
[342978610,1732242659716,-500.0,0.00059898,120]
[342978611,1732242659726,-500.0,0.00059898,120]
[342978612,1732242659735,-500.0,0.00059898,120]
[342978613,1732242659744,-500.0,0.00059898,120]
[342978614,1732242659754,-500.0,0.00059898,120]
[342978615,1732242659763,-285.54740483,0.00059898,120]
[342978616,1732242659772,-514.71,0.00059898,120]
[342978617,1732242659781,-514.71,0.00059898,120]
[342978618,1732242659795,-163.806583,0.00059898,120]
[342978619,1732242659804,-821.49,0.00059898,120]
[342978620,1732242659813,-500.0,0.00059898,120]
[342978621,1732242659822,-500.0,0.00059898,120]
[342978622,1732242659831,-5338.800337,0.00059898,120]
[342978623,1732242659841,-5338.800337,0.00059898,120]
[342978624,1732242659850,-500.0,0.00059898,120]
[342978625,1732242659860,-500.0,0.00059898,120]
[342978626,1732242659869,-500.0,0.00059898,120]
[342978627,1732242659879,-500.0,0.00059898,120]
[342978628,1732242659889,-500.0,0.00059898,120]
[342978629,1732242659898,-500.0,0.00059898,120]
[342978630,1732242659908,-500.0,0.00059898,120]
[342978631,1732242659918,-500.0,0.00059898,120]
[342978632,1732242659928,-576.24,0.00059898,120]
[342978633,1732242659938,-576.24,0.00059898,120]
[342978634,1732242659948,-500.0,0.00059898,120]
[342978635,1732242659958,-151.0,0.00059898,120]
[342978636,1732242659968,-500.0,0.00059898,120]
[342978637,1732242659977,-500.0,0.00059898,120]
[342978638,1732242659986,-500.0,0.00059898,120]
[342978639,1732242659995,-587.14190911,0.00059898,120]
[342978640,1732242660004,-500.0,0.00059898,120]
[342978641,1732242660014,-500.0,0.00059898,120]
[342978642,1732242660027,-500.0,0.00059898,120]
[342978643,1732242660037,-500.0,0.00059898,120]
[342978644,1732242660048,-411.27406322,0.00059898,120]
[342978645,1732242660058,-500.0,0.00059898,120]
[342978646,1732242660069,-500.0,0.00059898,120]
[342978647,1732242660079,-500.0,0.00059898,120]
[342978648,1732242660088,-500.0,0.00059898,120]
[342978649,1732242660098,-438.71613217,0.00059898,120]
[342978650,1732242660108,-500.0,0.00059898,120]
[342978651,1732242660118,-500.0,0.00059898,120]
[342978652,1732242660127,-151.0,0.00059899,30]
[342978653,1732242660137,-272.866724,0.00059899,120]
[342978654,1732242660149,-272.866724,0.00059899,120]
[342978655,1732242660158,-156.103643,0.00059899,120]
[342978656,1732242660168,-151.0,0.00059899,120]
[342978657,1732242660178,-151.0,0.00059899,120]
[342978658,1732242660188,-151.96052,0.00059899,120]
[342978659,1732242660197,-151.96052,0.00059899,120]
[342978660,1732242660207,-337.210013,0.00059899,120]
[342978661,1732242660222,-337.210013,0.00059899,120]
[342978662,1732242660233,-231.19487,0.00059899,120]
[342978663,1732242660243,-150.0,0.00059901,14]
[342978664,1732242660255,-150.0,0.00059902,14]
[342978665,1732242660265,-150.0,0.00059904,14]
[342978666,1732242660275,-150.0,0.00059907,14]
[342978667,1732242660284,-151.0,0.00059924,120]
[342978668,1732242660297,-542.782039,0.00059924,120]
[342978669,1732242660307,-542.782039,0.00059924,120]
[342978670,1732242660317,-284.828625,0.00059924,120]
[342978671,1732242660326,-151.0,0.00059924,120]
[342978672,1732242660336,-151.0,0.00059924,120]
[342978673,1732242660346,-150.0,0.0005993,14]
[342978674,1732242660355,-150.112211,0.00059948,120]
[342978675,1732242660365,-150.0,0.00059951,14]
[342978676,1732242660375,-150.0,0.00059955,14]
[342978677,1732242660384,-150.0,0.00059957,14]
[342978678,1732242660394,-150.0,0.00059959,14]
[342978679,1732242660403,-150.0,0.00059963,14]
[342978680,1732242660412,-150.0,0.00059963,14]
[342978681,1732242660422,-150.0,0.00059965,14]
[342978682,1732242660432,-150.0,0.00059966,14]
[342978683,1732242660441,-150.0,0.00059966,14]
[342978684,1732242660452,-150.0,0.00059968,14]
[342978685,1732242660461,-150.0,0.00059969,14]
[342978686,1732242660471,-150.0,0.00059971,14]
[342978687,1732242660481,-150.0,0.00059973,120]
[342978688,1732242660491,-150.0,0.00059973,120]
[342978689,1732242660501,-150.12845758,0.00059973,120]
[342978690,1732242660511,-500.0,0.00059977,120]
[342978691,1732242660520,-528.99,0.00059977,120]
[342978692,1732242660646,-500.0,0.00059977,120]
[342978693,1732242660656,-150.0,0.00059978,14]
[342978694,1732242660667,-150.0,0.00059978,14]
[342978695,1732242660678,-280.25,0.00059982,2]
[342978696,1732242660688,-150.0,0.00059993,14]
[342978697,1732242660698,-1000.0,0.00059995,120]
[342978698,1732242660708,-526.18,0.00059995,120]
[342978699,1732242660717,-500.0,0.00059995,21]
[342978700,1732242660727,-500.0,0.00059995,120]
[342978701,1732242660737,-2589.92,0.00059995,2]
[342978702,1732242660747,-500.0,0.00059995,120]
[342978703,1732242660756,-500.0,0.00059995,120]
[342978704,1732242660766,-1775.04,0.00059995,120]
[342978705,1732242660776,-500.0,0.00059995,120]
[342978706,1732242660785,-500.0,0.00059995,120]
[342978707,1732242660800,-500.0,0.00059995,120]
[342978708,1732242660810,-494.29835804,0.00059996,120]
[342978709,1732242660819,-500.0,0.00059996,120]
[342978710,1732242660829,-500.0,0.00059996,120]
[342978711,1732242660838,-500.0,0.00059996,120]
[342978712,1732242660848,-500.0,0.00059996,120]
[342978713,1732242660858,-398.45263683,0.00059996,120]
[342978714,1732242660867,-500.0,0.00059996,120]
[342978715,1732242660878,-278.04779016,0.00059996,120]
[342978716,1732242660887,-500.0,0.00059996,120]
[342978717,1732242660897,-600.88412661,0.00059996,120]
[342978718,1732242660907,-159.4274011,0.00059996,120]
[342978719,1732242660917,-500.0,0.00059996,120]
[342978720,1732242660926,-366.81404298,0.00059996,120]
[342978721,1732242660935,-500.0,0.00059996,120]
[342978722,1732242660945,-500.0,0.00059996,120]
[342978723,1732242660954,-500.0,0.00059996,120]
[342978724,1732242660964,-500.0,0.00059996,120]
[342978725,1732242660973,-496.50203246,0.00059996,120]
[342978726,1732242660982,-500.0,0.00059996,120]
[342978727,1732242660991,-500.0,0.00059996,120]
[342978728,1732242661000,-260.12505562,0.00059996,120]
[342978729,1732242661010,-500.0,0.00059996,120]
[342978730,1732242661019,-206.75688806,0.00059996,120]
[342978731,1732242661029,-351.19980408,0.00059996,120]
[342978732,1732242661041,-500.0,0.00059996,120]
[342978733,1732242661050,-500.0,0.00059996,120]
[342978734,1732242661060,-500.0,0.00059996,120]
[342978735,1732242661069,-162.14306262,0.00059996,120]
[342978736,1732242661079,-500.0,0.00059996,2]
[342978737,1732242661088,-502.6241163,0.00059996,2]
[342978738,1732242661098,-500.0,0.00059996,120]
[342978739,1732242661108,-279.53477067,0.00059996,120]
[342978740,1732242661117,-500.0,0.00059996,120]
[342978741,1732242661128,-616.38906305,0.00059996,120]
[342978742,1732242661137,-464.25,0.00059996,120]
[342978743,1732242661148,-151.0,0.00059996,120]
[342978744,1732242661158,-500.0,0.00059996,120]
[342978745,1732242661168,-276.08499778,0.00059996,120]
[342978746,1732242661178,-500.0,0.00059996,120]
[342978747,1732242661187,-500.0,0.00059996,120]
[342978748,1732242661197,-283.65866607,0.00059996,120]
[342978749,1732242661207,-500.0,0.00059996,120]
[342978750,1732242661222,-500.0,0.00059996,120]
[342978751,1732242661232,-500.0,0.00059996,120]
[342978752,1732242661242,-500.0,0.00059996,120]
[342978753,1732242661252,-289.917804,0.00059996,120]
[342978754,1732242661261,-500.0,0.00059996,120]
[342978755,1732242661271,-500.0,0.00059996,120]
[342978756,1732242661280,-500.0,0.00059996,120]
[342978757,1732242661294,-289.917804,0.00059996,120]
[342978758,1732242661304,-168.0,0.00059996,120]
[342978759,1732242661315,-168.0,0.00059996,120]
[342978760,1732242661324,-168.0,0.00059996,120]
[342978761,1732242661334,-500.0,0.00059996,120]
[342978762,1732242661343,-500.0,0.00059996,120]
[342978763,1732242661353,-500.0,0.00059996,120]
[342978764,1732242661362,-561.79203386,0.00059996,120]
[342978765,1732242661371,-500.0,0.00059996,120]
[342978766,1732242661381,-500.0,0.00059996,120]
[342978767,1732242661390,-500.0,0.00059996,120]
[342978768,1732242661399,-1000.0,0.00059996,120]
[342978769,1732242661409,-500.0,0.00059996,120]
[342978770,1732242661419,-500.0,0.00059996,120]
[342978771,1732242661428,-500.0,0.00059996,120]
[342978772,1732242661438,-500.0,0.00059996,120]
[342978773,1732242661447,-500.0,0.00059996,120]
[342978774,1732242661456,-533.14200099,0.00059996,120]
[342978775,1732242661466,-500.0,0.00059996,120]
[342978776,1732242661475,-500.0,0.00059996,120]
[342978777,1732242661485,-500.0,0.00059996,120]
[342978778,1732242661494,-500.0,0.00059996,120]
[342978779,1732242661503,-500.0,0.00059996,120]
[342978780,1732242661513,-500.0,0.00059996,120]
[342978781,1732242661522,-500.0,0.00059996,120]
[342978782,1732242661531,-500.0,0.00059996,120]
[342978783,1732242661543,-567.75523706,0.00059996,120]
[342978784,1732242661552,-500.0,0.00059996,120]
[342978785,1732242661562,-500.0,0.00059996,120]
[342978786,1732242661572,-500.0,0.00059996,120]
[342978787,1732242661582,-435.0964623,0.00059996,120]
[342978788,1732242661592,-312.34572519,0.00059996,120]
[342978789,1732242661601,-1000.0,0.00059996,120]
[342978790,1732242661611,-860.4811573,0.00059996,120]
[342978791,1732242661621,-500.0,0.00059996,120]
[342978792,1732242661630,-500.0,0.00059996,120]
[342978793,1732242661640,-500.0,0.00059996,120]
[342978794,1732242661649,-500.0,0.00059996,120]
[342978795,1732242661659,-500.0,0.00059996,120]
[342978796,1732242661667,-500.0,0.00059996,120]
[342978797,1732242661677,-557.79,0.00059996,120]
[342978798,1732242661686,-557.79,0.00059996,120]
[342978799,1732242661695,-557.79,0.00059996,120]
[342978800,1732242661705,-151.0,0.00059996,120]
[342978801,1732242661715,-500.0,0.00059996,120]
[342978802,1732242661725,-413.6351885,0.00059996,120]
[342978803,1732242661734,-526.18,0.00059996,120]
[342978804,1732242661744,-526.18,0.00059996,120]
[342978805,1732242661753,-162.12975207,0.00059996,120]
[342978806,1732242661762,-500.0,0.00059996,120]
[342978807,1732242661772,-298.48504907,0.00059996,120]
[342978808,1732242661781,-500.0,0.00059996,120]
[342978809,1732242661795,-500.0,0.00059996,120]
[342978810,1732242661805,-500.0,0.00059996,120]
[342978811,1732242661815,-500.0,0.00059996,21]
[342978812,1732242661825,-500.0,0.00059996,21]
[342978813,1732242661835,-500.0,0.00059996,120]
[342978814,1732242661844,-500.0,0.00059996,120]
[342978815,1732242661854,-500.0,0.00059996,120]
[342978816,1732242661863,-500.0,0.00059996,120]
[342978817,1732242661873,-500.0,0.00059996,120]
[342978818,1732242661882,-500.0,0.00059996,120]
[342978819,1732242661893,-500.0,0.00059996,120]
[342978820,1732242661903,-500.0,0.00059996,120]
[342978821,1732242661912,-500.0,0.00059996,7]
[342978822,1732242661922,-500.0,0.00059996,7]
[342978823,1732242661932,-500.0,0.00059996,7]
[342978824,1732242661941,-2589.92,0.00059996,2]
[342978825,1732242661951,-2589.92,0.00059996,2]
[342978826,1732242661960,-2589.92,0.00059996,2]
[342978827,1732242661970,-500.0,0.00059996,120]
[342978828,1732242661980,-500.0,0.00059996,120]
[342978829,1732242661988,-500.0,0.00059996,120]
[342978830,1732242661998,-500.0,0.00059996,120]
[342978831,1732242662008,-500.0,0.00059996,120]
[342978832,1732242662018,-500.0,0.00059996,120]
[342978833,1732242662028,-500.0,0.00059996,120]
[342978834,1732242662042,-304.81724302,0.00059996,120]
[342978835,1732242662052,-500.0,0.00059996,120]
[342978836,1732242662061,-500.0,0.00059996,120]
[342978837,1732242662071,-500.0,0.00059996,120]
[342978838,1732242662080,-591.58812054,0.00059996,120]
[342978839,1732242662090,-500.0,0.00059996,120]
[342978840,1732242662100,-500.0,0.00059996,120]
[342978841,1732242662110,-500.0,0.00059996,120]
[342978842,1732242662119,-500.0,0.00059996,120]
[342978843,1732242662130,-500.0,0.00059996,120]
[342978844,1732242662140,-500.0,0.00059996,120]
[342978845,1732242662150,-500.0,0.00059996,120]
[342978846,1732242662159,-317.07589738,0.00059996,120]
[342978847,1732242662169,-500.0,0.00059996,120]
[342978848,1732242662182,-500.0,0.00059996,120]
[342978849,1732242662191,-500.0,0.00059996,120]
[342978850,1732242662201,-500.0,0.00059996,120]
[342978851,1732242662215,-500.0,0.00059996,120]
[342978852,1732242662230,-514.71,0.00059996,120]
[342978853,1732242662240,-514.71,0.00059996,120]
[342978854,1732242662250,-514.71,0.00059996,120]
[342978855,1732242662261,-500.0,0.00059996,120]
[342978856,1732242662270,-500.0,0.00059996,120]
[342978857,1732242662279,-500.0,0.00059996,120]
[342978858,1732242662292,-500.0,0.00059996,120]
[342978859,1732242662302,-500.0,0.00059996,120]
[342978860,1732242662312,-500.0,0.00059996,120]
[342978861,1732242662322,-500.0,0.00059996,120]
[342978862,1732242662331,-500.0,0.00059996,120]
[342978863,1732242662342,-441.55263528,0.00059996,120]
[342978864,1732242662351,-500.0,0.00059996,120]
[342978865,1732242662361,-544.76050752,0.00059996,120]
[342978866,1732242662371,-500.0,0.00059996,120]
[342978867,1732242662381,-500.0,0.00059996,120]
[342978868,1732242662390,-500.0,0.00059996,120]
[342978869,1732242662400,-500.0,0.00059996,120]
[342978870,1732242662410,-215.0,0.00059996,120]
[342978871,1732242662420,-500.0,0.00059996,120]
[342978872,1732242662429,-500.0,0.00059996,120]
[342978873,1732242662438,-500.0,0.00059996,120]
[342978874,1732242662448,-325.12909288,0.00059996,120]
[342978875,1732242662457,-1078.73,0.00059996,120]
[342978876,1732242662467,-1078.73,0.00059996,120]
[342978877,1732242662476,-500.0,0.00059996,120]
[342978878,1732242662486,-528.99,0.00059996,120]
[342978879,1732242662495,-1078.73,0.00059996,120]
[342978880,1732242662504,-528.99,0.00059996,120]
[342978881,1732242662515,-1078.73,0.00059996,120]
[342978882,1732242662525,-528.99,0.00059996,120]
[342978883,1732242662534,-500.0,0.00059996,120]
[342978884,1732242662549,-1078.73,0.00059996,120]
[342978885,1732242662559,-528.99,0.00059996,120]
[342978886,1732242662569,-162.08238414,0.00059996,120]
[342978887,1732242662579,-528.99,0.00059996,120]
[342978888,1732242662588,-1775.04,0.00059996,120]
[342978889,1732242662598,-1775.04,0.00059996,120]
[342978890,1732242662608,-3750.37,0.00059996,120]
[342978891,1732242662617,-3750.37,0.00059996,120]
[342978892,1732242662627,-3750.37,0.00059996,120]
[342978893,1732242662636,-3750.37,0.00059996,120]
[342978894,1732242662646,-3750.37,0.00059996,120]
[342978895,1732242662655,-576.24,0.00059996,120]
[342978896,1732242662664,-576.24,0.00059996,120]
[342978897,1732242662674,-576.24,0.00059996,120]
[342978898,1732242662684,-500.0,0.00059996,120]
[342978899,1732242662694,-500.0,0.00059996,120]
[342978900,1732242662703,-500.0,0.00059996,120]
[342978901,1732242662712,-500.0,0.00059996,120]
[342978902,1732242662722,-500.0,0.00059996,120]
[342978903,1732242662732,-500.0,0.00059996,120]
[342978904,1732242662741,-296.32,0.00059996,120]
[342978905,1732242662751,-500.0,0.00059996,120]
[342978906,1732242662761,-500.0,0.00059996,120]
[342978907,1732242662770,-420.38137848,0.00059996,120]
[342978908,1732242662781,-500.0,0.00059996,120]
[342978909,1732242662794,-500.0,0.00059996,120]
[342978910,1732242662805,-357.2618639,0.00059996,120]
[342978911,1732242662816,-500.0,0.00059996,120]
[342978912,1732242662825,-500.0,0.00059996,120]
[342978913,1732242662835,-500.0,0.00059996,120]
[342978914,1732242662844,-500.0,0.00059996,120]
[342978915,1732242662853,-500.0,0.00059996,120]
[342978916,1732242662862,-500.0,0.00059996,120]
[342978917,1732242662872,-500.0,0.00059996,120]
[342978918,1732242662881,-271.57073626,0.00059996,120]
[342978919,1732242662890,-322360.01229282,0.00059997,36]
[342978920,1732242662900,-392.99264594,0.00059997,61]
[342978921,1732242662909,-218667.57038687,0.00059997,30]
[342978922,1732242662929,-500.57827625,0.00059997,30]
[342978923,1732242662942,-3953.81927455,0.00059997,30]
[342978924,1732242662956,-6069.351735,0.00059997,30]
[342978925,1732242662967,-4272.0828249,0.00059997,30]
[342978926,1732242662979,-2147.12161649,0.00059997,30]
[342978927,1732242662990,-2329.09776991,0.00059997,30]
[342978928,1732242663066,-778.77,0.000529,30]
[342978929,1732242663076,-594.644,0.00059997,30]
[342978930,1732242663092,-262.961274,0.00059496,120]
[342978931,1732242663102,-3864.11938014,0.00059997,30]
[342978932,1732242663113,-1394.67279097,0.00059997,30]
[342978933,1732242663126,-7828.52678611,0.00059997,30]
[342978934,1732242663141,-1060.66763246,0.00059997,30]
[342978935,1732242663155,-5337.05418157,0.00059997,30]
[342978936,1732242663166,-282.76429136,0.00059997,30]
[342978937,1732242663179,-4526.39403604,0.00059997,30]
[342978938,1732242663191,-1138.28203649,0.00059997,30]
[342978939,1732242663203,-44277.14899329,0.00059997,30]
[342978940,1732242663218,-11266.00451425,0.00059997,30]
[342978941,1732242663231,-310.96917184,0.00059997,30]
[342978942,1732242663244,-1768.83465385,0.00059997,30]
[342978969,1732243764247,-155.13,0.00015342,2]
[342978970,1732243764269,-159.12,0.00015342,2]
[342978971,1732243764291,-250.0,0.00031,2]
[342978972,1732243764313,-300.0,0.00033,2]
[342978973,1732243764335,-49.77176395,0.00033837,120]
[342978990,1732243831979,-150.0,0.00016862,2]
[342978991,1732243831988,-200.22823605,0.00033837,120]
[342978992,1732243832001,-350.0,0.00035,2]
[342978993,1732243832010,-20.95756882,0.00037657,30]
[342979005,1732243832218,-495.5346886,0.00037657,30]
[342979006,1732243832230,-598.53914493,0.00037657,30]
[342979007,1732243832239,-500.0,0.000444,15]
[342979008,1732243832250,-156.072,0.0004729,120]
[342979009,1732243832259,-150.28022877,0.0004795,2]
[342979010,1732243832268,-202.57626377,0.0004805,30]
[342979011,1732243832277,-159.868774,0.00049265,30]
[342979012,1732243832287,-28.12889993,0.00049881,30]
[342979013,1732243832298,-131.73987407,0.00049881,30]
[342979014,1732243832307,-500.0,0.0005,120]
[342979015,1732243832316,-159.868774,0.00050497,30]
[342979016,1732243832326,-159.868774,0.00051113,30]
[342979017,1732243832335,-159.868774,0.00051728,30]
[342979018,1732243832345,-238.21,0.00052632,2]
[342979019,1732243832354,-150.28022877,0.00052662,2]
[342979020,1732243832364,-154.472,0.00053292,120]
[342979021,1732243832373,-154.473,0.00053292,120]
[342979022,1732243832383,-504.55,0.00054332,120]
[342979023,1732243832392,-250.0,0.00054488,120]
[342979024,1732243832402,-700.0,0.00054543,15]
[342979025,1732243832411,-23900.0,0.00054544,2]
[342979026,1732243832421,-250.0,0.00054627,120]
[342979027,1732243832430,-500.0,0.00054815,2]
[342979028,1732243832439,-340.83,0.00054842,2]
[342979029,1732243832448,-238.21,0.00054896,2]
[342979030,1732243832458,-300.0,0.000555,15]
[342979031,1732243832467,-1000.0,0.00055774,120]
[342979032,1732243832477,-380.6,0.000559,2]
[342979033,1732243832486,-262.64,0.00056127,30]
[342979034,1732243832625,-155.44,0.00056225,120]
[342979035,1732243832637,-150.0,0.00056225,9]
[342979036,1732243832647,-1000.0,0.00056894,120]
[342979037,1732243832656,-4335.0,0.00057061,117]
[342979038,1732243832667,-238.21,0.0005716,2]
[342979039,1732243832677,-525.0,0.00057298,15]
[342979040,1732243832686,-150.28022877,0.00057373,2]
[342979041,1732243832695,-12378.04699452,0.000574,15]
[342979042,1732243832705,-1095.36490617,0.000574,15]
[342979043,1732243832715,-332.91774662,0.000574,28]
[342979045,1732243832726,-791.65463756,0.000574,28]
[342979047,1732243832736,-501.21711699,0.00057473,12]
[342979049,1732243832749,-225.68575337,0.00057473,15]
[342979051,1732243832758,-500.74439809,0.00057473,15]
[342979053,1732243832767,-412.68,0.0005749,30]
[342979055,1732243832776,-343.9,0.0005749,30]
[342979057,1732243832785,-286.59,0.0005749,30]
[342979058,1732243832794,-310.77042829,0.00057499,31]
[342979059,1732243832803,-365.612,0.00057499,112]
[342979060,1732243832813,-245000.0,0.000575,2]
[342979061,1732243832822,-154.47485613,0.000575,30]
[342979062,1732243832832,-230.51000417,0.000575,30]
[342979063,1732243832841,-436.77015658,0.00057534,120]
[342979064,1732243832849,-168.0,0.00057534,120]
[342979065,1732243832858,-500.0,0.00057534,120]
[342979066,1732243832868,-500.0,0.00057534,120]
[342979067,1732243832877,-500.0,0.00057534,120]
[342979068,1732243832887,-500.0,0.00057534,120]
[342979069,1732243832896,-500.0,0.00057534,120]
[342979070,1732243832906,-406.57,0.00057534,120]
[342979071,1732243832915,-500.0,0.00057534,120]
[342979072,1732243832925,-500.0,0.00057534,120]
[342979073,1732243832934,-500.0,0.00057534,120]
[342979074,1732243832943,-500.0,0.00057534,120]
[342979075,1732243832953,-500.0,0.00057534,120]
[342979076,1732243832962,-502.87985192,0.00057534,120]
[342979077,1732243832972,-500.0,0.00057534,120]
[342979078,1732243832981,-639.24762097,0.00057534,120]
[342979079,1732243832990,-500.0,0.00057534,120]